﻿Title;Products;Product Categories;Hazards;Hazard Categories;Origins;Distribution Countries;Suppliers;Announced By;Notification From;Date;URL;Summary
Milk and products thereof in wine by Minhas Sask Ventures Inc. from Canada;wine;alcoholic beverages;milk and products thereof;allergens;canada;;Minhas Sask Ventures Inc.;Canadian Food Inspection Agency;canada, north america;24-12-2020;https://www.inspection.gc.ca/food-recall-warnings-and-allergy-alerts/2020-12-24/eng/1608829435674/1608829440508;
E 200 - sorbic acid unauthorised and unauthorised ingredient (fraud) in white wine by VINECO-Vinné sklepy Chomutov s.r.o. from Romania;white wine;alcoholic beverages;e 200 - sorbic acid unauthorised, unauthorised ingredient (fraud);food additives and flavourings, fraud;romania;;VINECO-Vinné sklepy Chomutov s.r.o.;Czech Agriculture and Food Inspection Authority;czech republic, europe;18-12-2020;https://www.potravinynapranyri.cz/Detail.aspx?id=107884&lang=en&design=default&archive=actual&listtype=table;
Abnormal smell and taste disturbance and abnormal colour in white wine by Vinařství U Kapličky s.r.o. from Hungary;white wine;alcoholic beverages;abnormal smell, taste disturbance, abnormal colour;organoleptic aspects;hungary;;Vinařství U Kapličky s.r.o.;Czech Agriculture and Food Inspection Authority;czech republic, europe;18-12-2020;https://www.potravinynapranyri.cz/Detail.aspx?id=107924&lang=en&design=default&archive=actual&listtype=table;
Abnormal smell and taste disturbance and abnormal colour in white wine by Vinařství U Kapličky s.r.o. from Spain;white wine;alcoholic beverages;abnormal smell, taste disturbance, abnormal colour;organoleptic aspects;spain;;Vinařství U Kapličky s.r.o.;Czech Agriculture and Food Inspection Authority;czech republic, europe;18-12-2020;https://www.potravinynapranyri.cz/Detail.aspx?id=107923&lang=en&design=default&archive=actual&listtype=table;
Ethanol and sugars/sweeteners in white wine by Ladislav Bartoš from Czech Republic;white wine;alcoholic beverages;ethanol, sugars/sweeteners;chemical, fraud;czech republic;;Ladislav Bartoš;Czech Agriculture and Food Inspection Authority;czech republic, europe;18-12-2020;https://www.potravinynapranyri.cz/Detail.aspx?id=107926&lang=en&design=default&archive=actual&listtype=table;Excessive amounts of ethanol from added sugar were found in the wine. The legislation allows the addition of sugar to grape must to increase the ethanol content of wine, but according to the wine region, a limit value is set for the ethanol content of added sugar.
Unsuitable organoleptic characteristics in white wine by Pro Soare sekt a.s. from Czech Republic;white wine;alcoholic beverages;unsuitable organoleptic characteristics;organoleptic aspects;czech republic;;Pro Soare sekt a.s.;Czech Agriculture and Food Inspection Authority;czech republic, europe;25-11-2020;https://www.potravinynapranyri.cz/Detail.aspx?id=107871&lang=en&design=default&archive=actual&listtype=table;The wine had a cloudy appearance and there were floating impurities. The taste and smell were strongly oxidative. Wine oxidase is a defect where the wine is usually very high to brownish in colour and taste and aroma after apples.
Bursting possibility of bottle due to pressure build-up by secondary fermentation in red wine by Biolandweingut Huter from Germany;red wine;alcoholic beverages;bursting possibility of bottle due to pressure build-up by secondary fermentation;food contact materials;germany;;Biolandweingut Huter;German Federal Office of Consumer Protection and Food Safety;germany, europe;20-11-2020;https://www.lebensmittelwarnung.de/bvl-lmw-de/detail/lebensmittel/60394;
Iprodione in bottles of rosé wine from United States;bottles of rosé wine;alcoholic beverages;iprodione;chemical;united states;germany, europe;;RASFF;germany, europe;16-11-2020;https://webgate.ec.europa.eu/rasff-window/portal/?event=notificationDetail&NOTIF_REFERENCE=2020.5024;
E 200 - sorbic acid unauthorised and unauthorised ingredient (fraud) in still wines by Plněno v: Vinofol from Moldova;still wines;alcoholic beverages;e 200 - sorbic acid unauthorised, unauthorised ingredient (fraud);food additives and flavourings, fraud;moldova;;Plněno v: Vinofol;Czech Agriculture and Food Inspection Authority;czech republic, europe;4-11-2020;https://www.potravinynapranyri.cz/Detail.aspx?id=97804&lang=en&design=default&archive=actual&listtype=table;
Sulphur dioxide and sulphites in wine by Compass Network Pty Ltd from Australia;wine;alcoholic beverages;sulphur dioxide and sulphites;allergens;australia;;Compass Network Pty Ltd;Australian Competition and Consumer Commission;australia, australia/oceania;26-10-2020;https://www.productsafety.gov.au/recall/compass-network-pty-ltd-luxerose-hera-rose-and-honey-wine-100ml-and-luxerose-athena-peach-blossom-and-honey-wine-100ml;The recall is due to the presence of an undeclared allergen (sulphites). The products were sold in independent liquor stores and online liquor stores in New South Wales.
Counterfeit in wine from Italy;wine;alcoholic beverages;counterfeit;fraud;italy;;;Various News Sources;;25-10-2020;https://www.securingindustry.com/food-and-beverage/italian-police-bust-fake-tuscan-wine-ring-seizing-4-200-bottles/s104/a12457/#.X5URbFMzab8;
Ethanol and adding water in still wines by plněno v: Pavel Štěpánek from Czech Republic;still wines;alcoholic beverages;ethanol, adding water;chemical, fraud;czech republic;;plněno v: Pavel Štěpánek;Czech Agriculture and Food Inspection Authority;czech republic, europe;14-10-2020;https://www.potravinynapranyri.cz/Detail.aspx?id=87703&lang=en&design=default&archive=actual&listtype=table;The wine was adulterated by the unauthorized addition of 47 % of water. The addition of water is an unauthorized oenological (wine-growing) procedure. Also, an excess amount of ethanol from added sugar was found. The legislation allows the addition of sugar to grape must, to increase the ethanol content of wine, but according to the wine region a limit value is set for the ethanol content of added sugar.
Abnormal smell and taste disturbance in still wines from Czech Republic;still wines;alcoholic beverages;abnormal smell, taste disturbance;organoleptic aspects;czech republic;;;Czech Agriculture and Food Inspection Authority;czech republic, europe;8-10-2020;https://www.potravinynapranyri.cz/Detail.aspx?id=97749&lang=en&design=default&archive=actual&listtype=table;
Abnormal smell and taste disturbance in bottles of rosé wine by Plněno v: Pastra from Hungary;bottles of rosé wine;alcoholic beverages;abnormal smell, taste disturbance;organoleptic aspects;hungary;;Plněno v: Pastra;Czech Agriculture and Food Inspection Authority;czech republic, europe;8-10-2020;https://www.potravinynapranyri.cz/Detail.aspx?id=87672&lang=en&design=default&archive=actual&listtype=table;
Abnormal smell and taste disturbance and ethanol and adding water in still wines from Czech Republic;still wines;alcoholic beverages;abnormal smell, taste disturbance, ethanol, adding water;organoleptic aspects, chemical, fraud;czech republic;;;Czech Agriculture and Food Inspection Authority;czech republic, europe;8-10-2020;https://www.potravinynapranyri.cz/Detail.aspx?id=97748&lang=en&design=default&archive=actual&listtype=table;
Fraud in wine and meat products from Italy, Argentina;wine, meat products;alcoholic beverages, meat and meat products (other than poultry);fraud;fraud;italy, argentina;;;EU Knowledge centre for food fraud and quality;;7-10-2020;https://ec.europa.eu/knowledge4policy/sites/know4pol/files/food_fraud_newsletter_10-2020.pdf;
E 200 - sorbic acid unauthorised and abnormal smell and taste disturbance and unauthorised ingredient (fraud) in white wine by plněno: Tomáš Jurák from Hungary;white wine;alcoholic beverages;e 200 - sorbic acid unauthorised, abnormal smell, taste disturbance, unauthorised ingredient (fraud);food additives and flavourings, organoleptic aspects, fraud;hungary;;plněno: Tomáš Jurák;Czech Agriculture and Food Inspection Authority;czech republic, europe;29-9-2020;https://www.potravinynapranyri.cz/Detail.aspx?id=87684&lang=en&design=default&archive=actual&listtype=table;The maximum limit for the content of the preservative - sorbic acid was exceeded in the wine. The taste and aroma of the wine were inadequate, after the mold.
Adding water in still wines by Michal Sadloň-vinárstvo from Slovakia;still wines;alcoholic beverages;adding water;fraud;slovakia;;Michal Sadloň-vinárstvo;Czech Agriculture and Food Inspection Authority;czech republic, europe;29-9-2020;https://www.potravinynapranyri.cz/Detail.aspx?id=87702&lang=en&design=default&archive=actual&listtype=table;
Fraud in wine from Italy;wine;alcoholic beverages;fraud;fraud;italy;;;EU Knowledge centre for food fraud and quality;;17-9-2020;https://www.meteoweek.com/2020/09/17/nas-sequestrano-76-000litri-vino-cpe/;
Abnormal smell and taste disturbance in still wines by Víno HOMOLA s.r.o. from Moldova;still wines;alcoholic beverages;abnormal smell, taste disturbance;organoleptic aspects;moldova;;Víno HOMOLA s.r.o.;Czech Agriculture and Food Inspection Authority;czech republic, europe;10-9-2020;https://www.potravinynapranyri.cz/Detail.aspx?id=87675&lang=en&design=default&archive=actual&listtype=table;
Abnormal smell and taste disturbance in still wines by Vyrobeno a stáčeno v Andean Vineyards from Argentina;still wines;alcoholic beverages;abnormal smell, taste disturbance;organoleptic aspects;argentina;;Vyrobeno a stáčeno v Andean Vineyards;Czech Agriculture and Food Inspection Authority;czech republic, europe;4-9-2020;https://www.potravinynapranyri.cz/Detail.aspx?id=87679&lang=en&design=default&archive=actual&listtype=table;
Captan and unauthorised ingredient (fraud) in dry red wine from Chile;dry red wine;alcoholic beverages;captan, unauthorised ingredient (fraud);chemical, fraud;chile;;;Czech Agriculture and Food Inspection Authority;czech republic, europe;3-9-2020;https://www.potravinynapranyri.cz/Detail.aspx?id=77658&lang=en&design=default&archive=actual&listtype=table;
Abnormal smell and taste disturbance in still wine with pdo or pgi by plněno v: Vinacz from Hungary;still wine with pdo or pgi;alcoholic beverages;abnormal smell, taste disturbance;organoleptic aspects;hungary;;plněno v: Vinacz;Czech Agriculture and Food Inspection Authority;czech republic, europe;10-8-2020;https://www.potravinynapranyri.cz/Detail.aspx?id=77655&lang=en&design=default&archive=actual&listtype=table;
Abnormal smell and taste disturbance and abnormal colour in still wines by stáčírna: Suvorov Vin S.R.L. from Moldova;still wines;alcoholic beverages;abnormal smell, taste disturbance, abnormal colour;organoleptic aspects;moldova;;stáčírna: Suvorov Vin S.R.L.;Czech Agriculture and Food Inspection Authority;czech republic, europe;10-8-2020;https://www.potravinynapranyri.cz/Detail.aspx?id=77656&lang=en&design=default&archive=actual&listtype=table;
Abnormal smell and taste disturbance in still wine with pdo or pgi by plněno v: Vinacz from Hungary;still wine with pdo or pgi;alcoholic beverages;abnormal smell, taste disturbance;organoleptic aspects;hungary;;plněno v: Vinacz;Czech Agriculture and Food Inspection Authority;czech republic, europe;30-7-2020;https://www.potravinynapranyri.cz/Detail.aspx?id=77595&lang=en&design=default&archive=actual&listtype=table;
Abnormal smell and taste disturbance in bottled semisweet red wine by stáčírna: Suvorov Vin S.R.L. from Moldova;bottled semisweet red wine;alcoholic beverages;abnormal smell, taste disturbance;organoleptic aspects;moldova;;stáčírna: Suvorov Vin S.R.L.;Czech Agriculture and Food Inspection Authority;czech republic, europe;29-7-2020;https://www.potravinynapranyri.cz/Detail.aspx?id=77652&lang=en&design=default&archive=actual&listtype=table;
Adulteration (ema) in wine from Italy;wine;alcoholic beverages;adulteration (ema);fraud;italy;;;EU Knowledge centre for food fraud and quality;;29-7-2020;http://www.askanews.it/cronaca/2020/07/29/pepe-fareambiente-nemmeno-lockdown-ha-fermato-frodi-agroalimentari-pn_20200729_00182/;
Fraud in alcoholic beverages and wine from Unknown Origin;alcoholic beverages, wine;alcoholic beverages;fraud;fraud;unknown origin;;;EU Knowledge centre for food fraud and quality;;28-7-2020;https://euipo.europa.eu/ohimportal/en/web/observatory/status-reports-on-ip-infringement#Status_Report_2020;
Ochratoxin a in wine by GORGHELLO from Italy;wine;alcoholic beverages;ochratoxin a;chemical;italy;;GORGHELLO;Italian Ministry of Health;italy, europe;24-7-2020;http://www.salute.gov.it/portale/news/p3_2_1_3_5_1.jsp?lingua=italiano&menu=notizie&p=avvisi&tipo=richiami&id=813;
Ochratoxin a in red wine from Italy;red wine;alcoholic beverages;ochratoxin a;chemical;italy;germany, europe;;RASFF;germany, europe;25-6-2020;https://webgate.ec.europa.eu/rasff-window/portal/?event=notificationDetail&NOTIF_REFERENCE=2020.2601;
Counterfeit in bordeau wine from China;bordeau wine;alcoholic beverages;counterfeit;fraud;china;;;EU Knowledge centre for food fraud and quality;;20-6-2020;https://www.securingindustry.com/food-and-beverage/bordeaux-wine-body-wins-key-counterfeit-lawsuit-in-china/s104/a11909/#.XxFjbigzZPZ;
False marketing claims in wine from Spain;wine;alcoholic beverages;false marketing claims;fraud;spain;;;EU Knowledge centre for food fraud and quality;;20-6-2020;https://www.eleconomista.es/empresas-finanzas/noticias/10629477/06/20/Valdepenas-admite-un-fraude-en-casi-la-mitad-de-los-vinos-de-crianza-vendidos.html;
Glycerin in red wine by Vino Župa from Serbia;red wine;alcoholic beverages;glycerin;fraud;serbia;;Vino Župa;Czech Agriculture and Food Inspection Authority;czech republic, europe;4-6-2020;https://www.potravinynapranyri.cz/Detail.aspx?id=77607&lang=en&design=default&archive=actual&listtype=table;
Abnormal smell and taste disturbance in white wine by Suvorov - Vin SRL from Moldova;white wine;alcoholic beverages;abnormal smell, taste disturbance;organoleptic aspects;moldova;;Suvorov - Vin SRL;Czech Agriculture and Food Inspection Authority;czech republic, europe;4-6-2020;https://www.potravinynapranyri.cz/Detail.aspx?id=77606&lang=en&design=default&archive=actual&listtype=table;
Abnormal smell and taste disturbance in white wine by Prodejce: PeMaP s.r.o. from Bulgaria;white wine;alcoholic beverages;abnormal smell, taste disturbance;organoleptic aspects;bulgaria;;Prodejce: PeMaP s.r.o.;Czech Agriculture and Food Inspection Authority;czech republic, europe;4-6-2020;https://www.potravinynapranyri.cz/Detail.aspx?id=77605&lang=en&design=default&archive=actual&listtype=table;Oxidase was evident in the taste and aroma of the wine. Wine oxidase is a defect where the wine usually has a very high to brownish color and the taste and aroma of apples.
Abnormal smell and taste disturbance in still wines by Plněno v: Lovico Lozari JSC from Bulgaria;still wines;alcoholic beverages;abnormal smell, taste disturbance;organoleptic aspects;bulgaria;;Plněno v: Lovico Lozari JSC;Czech Agriculture and Food Inspection Authority;czech republic, europe;22-5-2020;https://www.potravinynapranyri.cz/Detail.aspx?id=77601&lang=en&design=default&archive=actual&listtype=table;
Appearance and abnormal smell and taste disturbance in white wine in bottle by mbottigliato da Angelo Rocca & F. s.n.c. – Agrate B. - Italia from Italy;white wine in bottle;alcoholic beverages;appearance, abnormal smell, taste disturbance;organoleptic aspects;italy;;mbottigliato da Angelo Rocca & F. s.n.c. – Agrate B. - Italia;Czech Agriculture and Food Inspection Authority;czech republic, europe;18-5-2020;https://www.potravinynapranyri.cz/Detail.aspx?id=77584&lang=en&design=default&archive=actual&listtype=table;
Appearance and abnormal colour and abnormal smell and taste disturbance in bottles of rosé wine by plnění: Cimislia S.A. 77 from Moldova;bottles of rosé wine;alcoholic beverages;appearance, abnormal colour, abnormal smell, taste disturbance;organoleptic aspects;moldova;;plnění: Cimislia S.A. 77;Czech Agriculture and Food Inspection Authority;czech republic, europe;18-5-2020;https://www.potravinynapranyri.cz/Detail.aspx?id=77585&lang=en&design=default&archive=actual&listtype=table;
"Abnormal smell and taste disturbance in white wine by ""Romanesti"" S.A. MD-3728 from Moldova";white wine;alcoholic beverages;abnormal smell, taste disturbance;organoleptic aspects;moldova;;"""Romanesti"" S.A. MD-3728";Czech Agriculture and Food Inspection Authority;czech republic, europe;18-5-2020;https://www.potravinynapranyri.cz/Detail.aspx?id=77600&lang=en&design=default&archive=actual&listtype=table;
"Abnormal smell and taste disturbance and abnormal colour in white wine in bottle by Stáčírna: IM ""VINARIA BOSTAVAN"" S.R.L. from Moldova";white wine in bottle;alcoholic beverages;abnormal smell, taste disturbance, abnormal colour;organoleptic aspects;moldova;;"Stáčírna: IM ""VINARIA BOSTAVAN"" S.R.L.";Czech Agriculture and Food Inspection Authority;czech republic, europe;12-5-2020;https://www.potravinynapranyri.cz/Detail.aspx?id=77578&lang=en&design=default&archive=actual&listtype=table;
Abnormal smell and taste disturbance and appearance and abnormal colour in dry red wine by PATRIA KOBYLÍ from Czech Republic;dry red wine;alcoholic beverages;abnormal smell, taste disturbance, appearance, abnormal colour;organoleptic aspects;czech republic;;PATRIA KOBYLÍ;Czech Agriculture and Food Inspection Authority;czech republic, europe;12-5-2020;https://www.potravinynapranyri.cz/Detail.aspx?id=77575&lang=en&design=default&archive=actual&listtype=table;
Abnormal smell and taste disturbance in white wine by Cexvi from Spain;white wine;alcoholic beverages;abnormal smell, taste disturbance;organoleptic aspects;spain;;Cexvi;Czech Agriculture and Food Inspection Authority;czech republic, europe;7-5-2020;https://www.potravinynapranyri.cz/Detail.aspx?id=77580&lang=en&design=default&archive=actual&listtype=table;Undesirable biological processes were evident in the taste and aroma of the wine - secondary fermentation.
Taste disturbance and abnormal smell in red wine by Vinacz from Italy;red wine;alcoholic beverages;taste disturbance, abnormal smell;organoleptic aspects;italy;;Vinacz;Czech Agriculture and Food Inspection Authority;czech republic, europe;7-5-2020;https://www.potravinynapranyri.cz/Detail.aspx?id=77581&lang=en&design=default&archive=actual&listtype=table;
Taste disturbance and abnormal smell in white wine by F. Boranal H-0001 from Hungary;white wine;alcoholic beverages;taste disturbance, abnormal smell;organoleptic aspects;hungary;;F. Boranal H-0001;Czech Agriculture and Food Inspection Authority;czech republic, europe;7-5-2020;https://www.potravinynapranyri.cz/Detail.aspx?id=77587&lang=en&design=default&archive=actual&listtype=table;The taste and aroma of the wine were strongly oxidative. Wine oxidase is a defect where the wine usually has a very high to brownish colour and the taste and aroma of apples.
Abnormal smell and taste disturbance and abnormal colour in white wine by BOHEMIA SEKT from Czech Republic;white wine;alcoholic beverages;abnormal smell, taste disturbance, abnormal colour;organoleptic aspects;czech republic;;BOHEMIA SEKT;Czech Agriculture and Food Inspection Authority;czech republic, europe;9-4-2020;https://www.potravinynapranyri.cz/Detail.aspx?id=77573&lang=en&design=default&archive=actual&listtype=table;
Abnormal smell and taste disturbance and abnormal colour in white wine in bottle by Plněno v: Vinařství Mutěnice from Hungary;white wine in bottle;alcoholic beverages;abnormal smell, taste disturbance, abnormal colour;organoleptic aspects;hungary;;Plněno v: Vinařství Mutěnice;Czech Agriculture and Food Inspection Authority;czech republic, europe;2-4-2020;https://www.potravinynapranyri.cz/Detail.aspx?id=67563&lang=en&design=default&archive=actual&listtype=table;
Abnormal smell and taste disturbance and appearance in white wine by baleno v: Larimex s.r.o. from Italy;white wine;alcoholic beverages;abnormal smell, taste disturbance, appearance;organoleptic aspects;italy;;baleno v: Larimex s.r.o.;Czech Agriculture and Food Inspection Authority;czech republic, europe;26-3-2020;https://www.potravinynapranyri.cz/Detail.aspx?id=67559&lang=en&design=default&archive=actual&listtype=table;
Too high content of e 200 - sorbic acid and unauthorised ingredient (fraud) in red wine by GESIGN LTD. from Bulgaria;red wine;alcoholic beverages;too high content of e 200 - sorbic acid, unauthorised ingredient (fraud);food additives and flavourings, fraud;bulgaria;;GESIGN LTD.;Ministry of Health, Labour and Welfare Japan;japan, asia;19-3-2020;https://www.mhlw.go.jp/content/000622858.xls;violation of standard of use（sorbic acid　0.60 g/kg detection） in alcoholic beverages：aromatized wine-based drink from grape and cherries
Counterfeit and suspicion of adulteration in red wine (merlot) from Denmark;red wine (merlot);alcoholic beverages;counterfeit, suspicion of adulteration;fraud;denmark;belgium, europe;;EU Knowledge centre for food fraud and quality;;27-2-2020;https://www.vrt.be/vrtnws/en/2020/02/27/woman-dies-after-bottle-of-red-wine-is-adulterated/;
Suspicion of adulteration in wine from Italy;wine;alcoholic beverages;suspicion of adulteration;fraud;italy;italy, europe;;EU Knowledge centre for food fraud and quality;;21-2-2020;https://www.italpress.com/sequestrati-nel-lazio-oltre-un-milione-di-litri-di-vino/;